fUSD/lending_fUSD_20251129
["ID","MTS","AMOUNT","RATE_DAILY","PERIOD"]
[395057880,1764385833007,-250.0,0.00015683,2]
[395057881,1764385833017,-500.0,0.00015683,2]
[395057882,1764385833027,-250.0,0.00015683,2]
[395057883,1764385833036,-250.0,0.00015683,2]
[395057884,1764385833045,-500.0,0.00015683,2]
[395057885,1764385833054,-250.0,0.00015683,2]
[395057886,1764385833063,-250.0,0.00015683,2]
[395057887,1764385833072,-500.0,0.00015683,2]
[395057888,1764385833080,-250.0,0.00015683,2]
[395057889,1764385833089,-250.0,0.00015683,2]
[395057890,1764385833098,-500.0,0.00015683,2]
[395057891,1764385833107,-250.0,0.00015683,2]
[395057892,1764385833116,-500.0,0.00015683,2]
[395057893,1764385833125,-250.0,0.00015683,2]
[395057894,1764385833134,-250.0,0.00015683,2]
[395057895,1764385833142,-250.0,0.00015683,2]
[395057896,1764385833152,-250.0,0.00015683,2]
[395057897,1764385833161,-250.0,0.00015683,2]
[395057898,1764385833170,-250.0,0.00015683,2]
[395057899,1764385833179,-250.0,0.00015683,2]
[395057900,1764385833187,-250.0,0.00015683,2]
[395057901,1764385833196,-250.0,0.00015683,2]
[395057902,1764385833205,-250.0,0.00015683,2]
[395057903,1764385833218,-500.0,0.00015683,2]
[395057904,1764385833228,-250.0,0.00015683,2]
[395057905,1764385833237,-500.0,0.00015683,2]
[395057906,1764385833247,-250.0,0.00015683,2]
[395057907,1764385833257,-500.0,0.00015683,2]
[395057908,1764385833265,-500.0,0.00015683,2]
[395057909,1764385833275,-500.0,0.00015683,2]
[395057910,1764385833285,-500.0,0.00015683,2]
[395057911,1764385833295,-500.0,0.00015683,2]
[395057912,1764385833304,-500.0,0.00015683,2]
[395057913,1764385833313,-500.0,0.00015683,2]
[395057914,1764385833322,-500.0,0.00015683,2]
[395057915,1764385833332,-500.0,0.00015683,2]
[395057916,1764385833340,-500.0,0.00015683,2]
[395057917,1764385833350,-267.46074303,0.00015683,2]
[395057918,1764385833359,-1437.59368089,0.00015753,2]
[395057919,1764385833368,-666.0,0.00015798,2]
[395057920,1764385833378,-166.66,0.00015799,2]
[395057921,1764385833386,-225.90669444,0.000158,2]
[395057922,1764385833396,-666.0,0.000158,2]
[395057923,1764385833407,-18487.10853433,0.00015846,2]
[395057924,1764385834459,-19743.65018952,0.00015846,2]
[395057925,1764385834471,-22105.71962482,0.00015846,2]
[395057926,1764385834482,-88961.98857797,0.00015846,2]
[395057927,1764385834492,-433.69278607,0.00015846,2]
[395057930,1764385837934,-638.55537377,0.00015846,2]
[395057931,1764385838011,-146017.49184474,0.00015846,2]
[395057932,1764385838074,-45940.19260473,0.00015846,2]
[395057933,1764385838086,-400.0,0.00015846,2]
[395057934,1764385838097,-38632.35427181,0.00015846,2]
[395057935,1764385838129,-4746.32649513,0.00015846,2]
[395057938,1764385838140,-138004.58258477,0.00015846,2]
[395057948,1764385839812,-10366.39721149,0.00015846,2]
[395057949,1764385839824,-357.28615974,0.00015846,2]
[395057951,1764385839880,-225164.65374111,0.00015846,2]
[395057952,1764385839890,-555.0,0.00015853,2]
[395057953,1764385839900,-555.0,0.00015853,2]
[395057954,1764385839910,-424.5872,0.00015854,2]
[395057955,1764385839919,-500.0,0.00015855,2]
[395057956,1764385839929,-500.0,0.00015855,2]
[395057957,1764385839938,-155.56578465,0.00015855,2]
[395057958,1764385839948,-500.0,0.00015855,2]
[395057959,1764385839957,-500.0,0.00015855,2]
[395057960,1764385839966,-500.0,0.00015855,2]
[395057961,1764385839975,-500.0,0.00015855,2]
[395057962,1764385839984,-445.91619451,0.00015855,2]
[395057963,1764385839993,-279.72598745,0.00015855,2]
[395057964,1764385840002,-500.0,0.00015855,2]
[395057965,1764385840012,-500.0,0.00015855,2]
[395057966,1764385840021,-500.0,0.00015855,2]
[395057967,1764385840031,-500.0,0.00015855,2]
[395057968,1764385840040,-500.0,0.00015855,2]
[395057969,1764385840049,-411.74380262,0.00015855,2]
[395057970,1764385840058,-500.0,0.00015855,2]
[395057971,1764385840067,-500.0,0.00015855,2]
[395057972,1764385840077,-500.0,0.00015855,2]
[395057973,1764385840086,-500.0,0.00015855,2]
[395057974,1764385840095,-500.0,0.00015855,2]
[395057975,1764385840105,-500.0,0.00015855,2]
[395057976,1764385840115,-500.0,0.00015855,2]
[395057977,1764385840125,-500.0,0.00015855,2]
[395057978,1764385840135,-500.0,0.00015855,2]
[395057979,1764385840144,-500.0,0.00015855,2]
[395057980,1764385840153,-500.0,0.00015855,2]
[395057981,1764385840164,-153.96415907,0.00015855,2]
[395057982,1764385840173,-500.0,0.00015855,2]
[395057983,1764385840182,-500.0,0.00015855,2]
[395057984,1764385840194,-500.0,0.00015855,2]
[395057985,1764385840203,-500.0,0.00015855,2]
[395057986,1764385840218,-500.0,0.00015855,2]
[395057987,1764385840227,-500.0,0.00015855,2]
[395057988,1764385840236,-500.0,0.00015855,2]
[395057990,1764385840247,-500.0,0.00015855,2]
[395057992,1764385840256,-500.0,0.00015855,2]
[395057994,1764385840266,-500.0,0.00015855,2]
[395057996,1764385840275,-603.96496288,0.00015855,2]
[395057998,1764385840285,-500.0,0.00015855,2]
[395058000,1764385840294,-200.0,0.00015855,2]
[395058002,1764385840304,-500.0,0.00015855,2]
[395058004,1764385840314,-500.0,0.00015855,2]
[395058006,1764385840324,-500.0,0.00015855,2]
[395058008,1764385840333,-500.0,0.00015855,2]
[395058010,1764385840343,-500.0,0.00015855,2]
[395058012,1764385840352,-500.0,0.00015855,2]
[395058013,1764385840361,-500.0,0.00015855,2]
[395058014,1764385840370,-500.0,0.00015855,2]
[395058015,1764385840380,-500.0,0.00015855,2]
[395058016,1764385840390,-555.0,0.00015855,2]
[395058017,1764385840399,-2500.0,0.00015856,2]
[395058018,1764385840408,-170.1,0.00015862,2]
[395058019,1764385840422,-513.02,0.00015882,2]
[395058020,1764385840433,-151.0,0.000159,2]
[395058021,1764385840443,-200.0,0.00015907,2]
[395058022,1764385840452,-200.0,0.00015907,2]
[395058023,1764385840462,-500.0,0.00015907,2]
[395058024,1764385840472,-803.83,0.00015946,2]
[395058025,1764385840481,-1000.0,0.00015955,2]
[395058026,1764385840491,-1003.2403803,0.00015955,2]
[395058027,1764385840501,-168.77491045,0.00015955,2]
[395058028,1764385840510,-213.45429162,0.00015955,2]
[395058029,1764385840520,-500.0,0.00015955,2]
[395058030,1764385840530,-247.31862932,0.00015955,2]
[395058031,1764385840540,-490.11196875,0.00015955,2]
[395058032,1764385840550,-1069.59751815,0.00015955,5]
[395058033,1764385840560,-500.0,0.00015955,2]
[395058034,1764385840571,-500.0,0.00015955,2]
[395058035,1764385840580,-554.18165703,0.00015955,2]
[395058036,1764385840590,-500.0,0.00015955,2]
[395058037,1764385840599,-500.71233622,0.00015955,2]
[395058038,1764385840609,-500.0,0.00015955,2]
[395058039,1764385840619,-500.0,0.00015955,2]
[395058040,1764385840628,-500.0,0.00015955,2]
[395058041,1764385840638,-500.0,0.00015955,2]
[395058042,1764385840648,-500.0,0.00015955,2]
[395058043,1764385840658,-500.0,0.00015955,2]
[395058044,1764385840668,-500.0,0.00015955,2]
[395058045,1764385840677,-500.0,0.00015955,2]
[395058046,1764385840687,-500.0,0.00015955,2]
[395058047,1764385840698,-500.0,0.00015955,2]
[395058048,1764385840708,-500.0,0.00015955,2]
[395058049,1764385840718,-515.32671866,0.00015955,2]
[395058050,1764385840728,-500.0,0.00015955,2]
[395058051,1764385840738,-500.0,0.00015955,2]
[395058052,1764385840748,-504.53940233,0.00015955,2]
[395058053,1764385840757,-500.0,0.00015955,2]
[395058054,1764385840767,-500.0,0.00015955,2]
[395058055,1764385840776,-500.0,0.00015955,2]
[395058056,1764385840786,-502.19807577,0.00015973,2]
[395058057,1764385840796,-500.0,0.00015973,2]
[395058058,1764385840806,-500.0,0.00015973,2]
[395058059,1764385840816,-500.0,0.00015973,2]
[395058060,1764385840826,-159.99691032,0.00015973,2]
[395058061,1764385840836,-154.79663815,0.00015973,2]
[395058062,1764385840846,-500.0,0.00015973,2]
[395058063,1764385840856,-500.0,0.00015973,2]
[395058064,1764385840866,-275.64766631,0.00015973,2]
[395058065,1764385840876,-501.60422805,0.00015973,2]
[395058066,1764385840885,-501.92314784,0.00015973,2]
[395058067,1764385840895,-500.0,0.00015973,2]
[395058068,1764385840905,-500.0,0.00015973,2]
[395058069,1764385840916,-500.84864969,0.00015973,2]
[395058070,1764385840927,-160.05006071,0.00015973,2]
[395058071,1764385840936,-500.0,0.00015973,2]
[395058072,1764385840946,-201.08259325,0.00015973,2]
[395058073,1764385840955,-501.57067169,0.00015973,2]
[395058074,1764385840965,-501.17036875,0.00015973,2]
[395058075,1764385840975,-500.0,0.00015973,2]
[395058076,1764385840984,-500.0,0.00015973,2]
[395058077,1764385840994,-166.66,0.00016078,2]
[395058078,1764385841003,-6197.65,0.00016103,2]
[395058079,1764385841013,-166.66,0.00016106,2]
[395058080,1764385841022,-323.07824312,0.00016136,2]
[395058081,1764385841031,-150.0,0.00016137,2]
[395058082,1764385841041,-260.0,0.00016164,3]
[395058083,1764385841051,-300.0,0.00016212,2]
[395058084,1764385841061,-250.0,0.00016212,2]
[395058085,1764385841071,-195.0,0.00016212,2]
[395058086,1764385841081,-302.56851205,0.00016212,2]
[395058087,1764385841091,-803.83,0.0001622,2]
[395058088,1764385841101,-151.0,0.00016231,2]
[395058089,1764385841113,-666.0,0.00016231,2]
[395058090,1764385841123,-574.12855637,0.00016231,2]
[395058091,1764385841133,-151.0,0.00016231,2]
[395058092,1764385841142,-151.0,0.00016231,2]
[395058093,1764385841152,-244.63143502,0.00016362,2]
[395058094,1764385841162,-314.41349038,0.000164,2]
[395058095,1764385841172,-500.0,0.00016438,2]
[395058096,1764385841182,-500.0,0.00016438,2]
[395058097,1764385841191,-500.0,0.00016438,2]
[395058098,1764385841202,-500.0,0.00016438,2]
[395058099,1764385841216,-223.78063475,0.00016438,2]
[395058100,1764385841227,-3210.17,0.00016438,2]
[395058101,1764385841237,-605.63539217,0.00016438,2]
[395058102,1764385841247,-336.06,0.00016438,4]
[395058103,1764385841258,-200.0,0.00016455,2]
[395058104,1764385841267,-200.0,0.00016455,2]
[395058105,1764385841278,-500.0,0.00016455,2]
[395058106,1764385841289,-1193.0,0.00016472,2]
[395058107,1764385841299,-911.972,0.00016472,2]
[395058108,1764385841308,-221.0,0.00016474,2]
[395058109,1764385841319,-2726.469,0.00016474,2]
[395058110,1764385841329,-254.64,0.00016474,2]
[395058111,1764385841339,-6504.0,0.00016474,2]
[395058112,1764385841348,-556.848,0.00016474,2]
[395058113,1764385841358,-510.0,0.00016479,2]
[395058114,1764385841368,-803.83,0.00016494,2]
[395058115,1764385841378,-598.51138711,0.00016521,2]
[395058116,1764385841387,-504.0571586,0.00016521,2]
[395058117,1764385841397,-1000.0,0.00016521,2]
[395058118,1764385841406,-1004.7020723,0.00016521,2]
[395058119,1764385841415,-1000.0,0.00016521,2]
[395058120,1764385841424,-505.34047278,0.00016521,2]
[395058121,1764385841434,-1003.53520414,0.00016521,2]
[395058122,1764385841443,-1000.0,0.00016521,2]
[395058123,1764385841452,-1004.10751524,0.00016521,2]
[395058124,1764385841461,-1000.0,0.00016521,2]
[395058125,1764385841470,-1660.0,0.00016545,2]
[395058126,1764385841479,-1680.0,0.00016589,2]
[395058127,1764385841488,-5587.61962049,0.00016594,2]
[395058128,1764385841497,-942.60113496,0.00016597,2]
[395058129,1764385841506,-166.66,0.00016609,2]
[395058130,1764385841515,-957.66401218,0.0001666,2]
[395058131,1764385841525,-1660.0,0.00016669,2]
[395058132,1764385841534,-1660.0,0.0001669,2]
[395058133,1764385841544,-1000.0,0.000167,2]
[395058134,1764385841554,-500.0,0.00016701,2]
[395058135,1764385841564,-1607.917,0.00016702,2]
[395058136,1764385841573,-613.086,0.00016702,2]
[395058137,1764385841583,-1325.592,0.00016702,2]
[395058138,1764385841592,-1261.871,0.00016702,2]
[395058139,1764385841601,-836.0,0.00016702,2]
[395058140,1764385841610,-774.952,0.00016702,2]
[395058141,1764385841619,-1414.92178151,0.00016722,2]
[395058142,1764385841629,-1660.0,0.00016733,2]
[395058143,1764385841639,-803.83,0.00016768,2]
[395058144,1764385841648,-151.0,0.00016779,2]
[395058145,1764385841658,-666.0,0.00016779,2]
[395058146,1764385841667,-595.37131296,0.00016779,2]
[395058147,1764385841676,-151.0,0.00016779,2]
[395058148,1764385841685,-151.0,0.00016779,2]
[395058149,1764385841695,-222.65612674,0.00016782,2]
[395058150,1764385841704,-8018.7161,0.000168,2]
[395058151,1764385841714,-1000.0,0.000168,2]
[395058152,1764385841723,-1000.0,0.000168,2]
[395058153,1764385841733,-1660.0,0.00016812,2]
[395058154,1764385841743,-1522.03619476,0.00016821,2]
[395058155,1764385841752,-1660.0,0.0001686,2]
[395058156,1764385841762,-355.18950166,0.00016876,2]
[395058157,1764385841772,-150.0,0.00016883,2]
[395058158,1764385841782,-150.0,0.00016883,2]
[395058159,1764385841791,-500.0,0.00016883,2]
[395058160,1764385841800,-500.0,0.00016883,2]
[395058161,1764385841811,-157.27872428,0.00016883,2]
[395058162,1764385841820,-500.0,0.00016883,2]
[395058163,1764385841830,-150.0,0.00016883,2]
[395058164,1764385841840,-150.0,0.00016883,2]
[395058165,1764385841850,-500.0,0.00016883,2]
[395058166,1764385841860,-500.0,0.00016883,2]
[395058167,1764385841869,-500.0,0.00016883,2]
[395058168,1764385841879,-150.0,0.00016883,2]
[395058169,1764385841888,-760.0,0.00016883,2]
[395058170,1764385841898,-500.0,0.00016883,2]
[395058171,1764385841908,-436.0,0.00016883,2]
[395058172,1764385841919,-150.0,0.00016883,2]
[395058173,1764385841929,-500.0,0.00016883,2]
[395058174,1764385841939,-690.0,0.00016883,2]
[395058175,1764385841950,-500.0,0.00016883,2]
[395058176,1764385841960,-150.0,0.00016883,2]
[395058177,1764385841969,-500.0,0.00016883,2]
[395058178,1764385841981,-150.0,0.00016883,2]
[395058179,1764385841991,-208.99032631,0.00016883,2]
[395058180,1764385842000,-500.0,0.00016883,2]
[395058181,1764385842010,-500.0,0.00016883,2]
[395058182,1764385842021,-1660.0,0.00016889,2]
[395058183,1764385842031,-4931.0,0.00016899,2]
[395058184,1764385842041,-500.0,0.00016899,2]
[395058185,1764385842053,-500.0,0.00016899,2]
[395058186,1764385842062,-513.09178011,0.00016899,2]
[395058187,1764385842072,-500.0,0.00016899,2]
[395058188,1764385842082,-500.0,0.00016899,2]
[395058189,1764385842092,-500.0,0.00016899,2]
[395058190,1764385842102,-500.0,0.00016899,2]
[395058191,1764385842112,-500.0,0.00016899,2]
[395058192,1764385842122,-500.0,0.00016899,2]
[395058193,1764385842132,-1170.62799515,0.000169,2]
[395058194,1764385842142,-287.07079724,0.000169,2]
[395058195,1764385842152,-1000.0,0.000169,2]
[395058196,1764385842161,-379.31286523,0.000169,2]
[395058197,1764385842171,-595.07469987,0.000169,2]
[395058198,1764385842180,-278.0,0.0001691,2]
[395058199,1764385842190,-1660.0,0.00016923,2]
[395058200,1764385842200,-500.0,0.0001697,2]
[395058201,1764385842213,-1000.0,0.0001697,2]
[395058202,1764385842225,-1000.0,0.0001697,2]
[395058203,1764385842235,-500.0,0.0001697,2]
[395058204,1764385842244,-1000.0,0.0001697,2]
[395058205,1764385842254,-500.0,0.0001697,2]
[395058206,1764385842263,-500.0,0.0001697,2]
[395058207,1764385842273,-1536.57021784,0.0001697,2]
[395058208,1764385842286,-584.40163245,0.0001697,2]
[395058209,1764385842301,-501.02061135,0.00016973,2]
[395058210,1764385842310,-168.80860309,0.00016973,2]
[395058211,1764385842319,-500.0,0.00016973,2]
[395058212,1764385842328,-500.0,0.00016973,2]
[395058213,1764385842337,-500.0,0.00016973,2]
[395058214,1764385842347,-557.79853183,0.00016973,2]
[395058215,1764385842356,-533.48476071,0.00016973,2]
[395058216,1764385842365,-500.0,0.00016973,2]
[395058217,1764385842374,-160.14128752,0.00016973,2]
[395058218,1764385842383,-160.05429824,0.00016973,2]
[395058219,1764385842392,-160.04790808,0.00016973,2]
[395058220,1764385842401,-500.0,0.00016973,2]
[395058221,1764385842410,-500.0,0.00016973,2]
[395058222,1764385842420,-500.0,0.00016973,2]
[395058223,1764385842429,-179.09525737,0.00016973,2]
[395058224,1764385842440,-500.0,0.00016973,2]
[395058225,1764385842450,-500.0,0.00016973,2]
[395058226,1764385842461,-500.0,0.00016973,2]
[395058227,1764385842471,-333.4830249,0.00016973,2]
[395058228,1764385842480,-500.0,0.00016973,2]
[395058229,1764385842489,-500.0,0.00016973,2]
[395058230,1764385842498,-161.88708279,0.00016973,2]
[395058231,1764385842507,-160.05339585,0.00016973,2]
[395058232,1764385842516,-500.47988621,0.00016973,2]
[395058233,1764385842526,-160.05338935,0.00016973,2]
[395058234,1764385842535,-500.2924213,0.00016973,2]
[395058235,1764385842546,-160.05320406,0.00016973,2]
[395058236,1764385842556,-500.0,0.00016973,2]
[395058237,1764385842565,-160.05324003,0.00016973,2]
[395058238,1764385842574,-165.01800137,0.00016973,2]
[395058239,1764385842584,-500.0,0.00016973,2]
[395058240,1764385842593,-500.0,0.00016973,2]
[395058241,1764385842603,-161.52693208,0.00016973,2]
[395058242,1764385842612,-500.0,0.00016973,2]
[395058243,1764385842621,-150.0,0.00016973,2]
[395058245,1764385842631,-500.0,0.00016973,2]
[395058246,1764385842640,-500.0,0.00016973,2]
[395058247,1764385842650,-500.0,0.00016973,2]
[395058248,1764385842659,-306.08212615,0.00016973,2]
[395058249,1764385842668,-500.0,0.00016973,2]
[395058251,1764385842678,-500.0,0.00016973,2]
[395058252,1764385842687,-500.0,0.00016973,2]
[395058253,1764385842697,-500.0,0.00016973,2]
[395058254,1764385842706,-500.0,0.00016973,2]
[395058255,1764385842715,-160.0532438,0.00016973,2]
[395058256,1764385842725,-160.05339098,0.00016973,2]
[395058257,1764385842735,-500.0,0.00016973,2]
[395058258,1764385842744,-500.0,0.00016973,2]
[395058259,1764385842753,-500.0,0.00016973,2]
[395058260,1764385842763,-500.99036577,0.00016973,2]
[395058261,1764385842773,-500.0,0.00016973,2]
[395058262,1764385842782,-500.0,0.00016973,2]
[395058263,1764385842792,-325.08835387,0.00016973,2]
[395058265,1764385842802,-500.0,0.00016973,2]
[395058266,1764385842811,-502.62252388,0.00016973,2]
[395058267,1764385842821,-591.97192676,0.00016973,2]
[395058268,1764385842830,-500.0,0.00016973,2]
[395058269,1764385842839,-528.31342299,0.00016973,2]
[395058270,1764385842849,-500.0,0.00016973,2]
[395058271,1764385842859,-175.94033749,0.00016973,2]
[395058272,1764385842868,-600.83027329,0.00016973,2]
[395058273,1764385842878,-500.0,0.00016973,2]
[395058274,1764385842888,-500.0,0.00016973,2]
[395058275,1764385842899,-150.0,0.00016986,2]
[395058276,1764385842909,-150.0,0.00016986,2]
[395058277,1764385843181,-168.22944718,0.00016986,2]
[395058278,1764385843191,-6127.0,0.00016986,2]
[395058279,1764385843200,-948.98572958,0.0001699,2]
[395058280,1764385843214,-300.0,0.00016999,2]
[395058281,1764385843223,-300.0,0.00016999,2]
[395058282,1764385843235,-300.0,0.00016999,2]
[395058283,1764385843245,-300.0,0.00016999,2]
[395058284,1764385843259,-300.0,0.00016999,2]
[395058285,1764385843268,-500.0,0.00016999,2]
[395058286,1764385843278,-524.2924462,0.00016999,2]
[395058287,1764385843291,-500.0,0.00016999,2]
[395058288,1764385843301,-459.83789569,0.00016999,2]
[395058289,1764385843311,-500.0,0.00016999,2]
[395058290,1764385843320,-500.18909078,0.00016999,2]
[395058291,1764385843331,-875727.80284032,0.00017,2]
[395058292,1764385843342,-2000.0,0.00017,2]
[395058293,1764385843352,-2889.9213577,0.00017,2]
[395058294,1764385843361,-2000.0,0.00017,2]
[395058295,1764385843371,-200.0,0.00017,2]
[395058296,1764385843380,-62597.5811821,0.00017,2]
[395058298,1764385843388,-18651.3134046,0.00017,2]
[395058299,1764385843398,-189.88,0.00017,2]
[395058300,1764385843407,-2000.0,0.00017,2]
[395058301,1764385843416,-186112.819974,0.00017,2]
[395058302,1764385843426,-15043.8605353,0.00017,2]
[395058303,1764385843435,-366.18706869,0.00017,2]
[395058304,1764385843444,-663.71324899,0.00017,2]
[395058305,1764385843454,-250.0,0.00017,2]
[395058306,1764385843463,-5001.59833,0.00017,2]
[395058307,1764385843472,-1000.0,0.00017,2]
[395058308,1764385843481,-1715.8923525,0.00017,2]
[395058309,1764385843491,-200.0,0.00017003,2]
[395058310,1764385843500,-200.0,0.00017003,2]
[395058311,1764385843509,-161.12457674,0.0001702,2]
[395058312,1764385843519,-150.0,0.0001702,2]
[395058313,1764385843528,-500.0,0.0001702,2]
[395058314,1764385843538,-562.65065977,0.0001702,2]
[395058315,1764385843547,-500.0,0.0001702,2]
[395058316,1764385843556,-150.0,0.0001702,2]
[395058317,1764385843565,-150.0,0.0001702,2]
[395058318,1764385843575,-500.0,0.0001702,2]
[395058319,1764385843584,-500.0,0.0001702,2]
[395058320,1764385843593,-500.0,0.0001702,2]
[395058321,1764385843602,-150.0,0.0001702,2]
[395058322,1764385843611,-760.0,0.0001702,2]
[395058323,1764385843620,-500.0,0.0001702,2]
[395058324,1764385843631,-436.0,0.0001702,2]
[395058325,1764385843640,-221.38150535,0.0001702,2]
[395058326,1764385843648,-500.0,0.0001702,2]
[395058327,1764385843657,-690.0,0.0001702,2]
[395058328,1764385843666,-500.0,0.0001702,2]
[395058329,1764385843675,-500.0,0.0001702,2]
[395058330,1764385843685,-500.0,0.0001702,2]
[395058331,1764385843695,-500.0,0.0001702,2]
[395058332,1764385843704,-168.0,0.00017022,2]
[395058333,1764385843715,-820.0,0.00017026,2]
[395058334,1764385843724,-803.83,0.00017042,2]
[395058335,1764385843733,-151.0,0.00017052,2]
[395058336,1764385843743,-311.1,0.00017052,2]
[395058337,1764385843752,-277.35679052,0.00017052,2]
[395058338,1764385843762,-1501.69053281,0.00017068,2]
[395058339,1764385843771,-1500.0,0.00017068,2]
[395058340,1764385843780,-1500.0,0.00017068,2]
[395058341,1764385843790,-502.99418287,0.00017068,2]
[395058342,1764385843800,-1000.0,0.000171,2]
[395058343,1764385843809,-166.66,0.0001714,2]
[395058344,1764385843819,-213.18459641,0.00017157,2]
[395058345,1764385843828,-500.0,0.00017157,2]
[395058346,1764385843838,-500.0,0.00017157,2]
[395058347,1764385843847,-266.46737986,0.00017157,2]
[395058348,1764385843858,-150.0,0.00017157,2]
[395058349,1764385843867,-500.0,0.00017157,2]
[395058350,1764385843877,-500.0,0.00017157,2]
[395058351,1764385843886,-500.0,0.00017157,2]
[395058352,1764385843896,-150.0,0.00017157,2]
[395058353,1764385843906,-760.0,0.00017157,2]
[395058354,1764385843915,-500.0,0.00017157,2]
[395058355,1764385843925,-436.0,0.00017157,2]
[395058356,1764385843934,-500.0,0.00017157,2]
[395058357,1764385843943,-690.0,0.00017157,2]
[395058358,1764385843953,-500.0,0.00017157,2]
[395058359,1764385843962,-500.0,0.00017157,2]
[395058360,1764385843972,-500.0,0.00017157,2]
[395058361,1764385843982,-500.0,0.00017157,2]
[395058362,1764385843991,-200.0,0.0001717,2]
[395058363,1764385844000,-1437.59368086,0.00017206,2]
[395058364,1764385844010,-278.0,0.00017248,2]
[395058365,1764385844020,-500.0,0.00017294,2]
[395058366,1764385844029,-323.76466444,0.00017294,2]
[395058367,1764385844039,-210.00123417,0.00017294,2]
[395058368,1764385844048,-507.25275218,0.00017294,2]
[395058369,1764385844057,-500.0,0.00017294,2]
[395058370,1764385844067,-500.0,0.00017294,2]
[395058371,1764385844076,-150.0,0.00017294,2]
[395058372,1764385844085,-760.0,0.00017294,2]
[395058373,1764385844094,-500.0,0.00017294,2]
[395058374,1764385844104,-436.0,0.00017294,2]
[395058375,1764385844114,-500.0,0.00017294,2]
[395058376,1764385844123,-690.0,0.00017294,2]
[395058377,1764385844133,-500.0,0.00017294,2]
[395058378,1764385844142,-500.0,0.00017294,2]
[395058379,1764385844152,-306.0,0.00017294,2]
[395058380,1764385844161,-500.0,0.00017294,2]
[395058381,1764385844171,-803.83,0.00017316,2]
[395058382,1764385844180,-153.80274994,0.00017327,2]
[395058383,1764385844190,-617.40005154,0.00017327,2]
[395058384,1764385844199,-666.0,0.00017327,2]
[395058385,1764385844213,-219.9382053,0.00017327,2]
[395058386,1764385844222,-151.0,0.00017327,2]
[395058387,1764385844231,-200.0,0.00017342,2]
[395058388,1764385844241,-165.98,0.00017344,2]
[395058389,1764385844250,-6898.0,0.00017397,2]
[395058390,1764385844260,-278.0,0.00017403,2]
[395058391,1764385844271,-500.0,0.00017431,2]
[395058392,1764385844283,-500.0,0.00017431,2]
[395058393,1764385844293,-271.64448865,0.00017431,2]
[395058394,1764385844302,-150.0,0.00017431,2]
[395058395,1764385844311,-760.0,0.00017431,2]
[395058396,1764385844320,-500.0,0.00017431,2]
[395058397,1764385844329,-436.0,0.00017431,2]
[395058398,1764385844338,-500.0,0.00017431,2]
[395058399,1764385844347,-690.0,0.00017431,2]
[395058400,1764385844356,-500.0,0.00017431,2]
[395058401,1764385844365,-500.0,0.00017431,2]
[395058402,1764385844374,-500.0,0.00017431,2]
[395058403,1764385844383,-200.0,0.00017515,2]
[395058404,1764385844392,-5888.0,0.00017519,2]
[395058405,1764385844401,-1000.0,0.00017521,2]
[395058406,1764385844409,-1000.0,0.00017521,2]
[395058407,1764385844419,-500.60490188,0.00017521,2]
[395058408,1764385844427,-674.67915074,0.00017521,2]
[395058409,1764385844437,-1007.7076512,0.00017521,2]